[Event "Titled Tuesday Blitz July 25 Late 2023"]
[White "Liu, Casper"]
[Black "Kukavica, Tony"]
[WhiteFideId "1454153"]
[BlackFideId "2062542"]
[WhiteElo "2498"]
[BlackElo "2309"]
[Result "0-1"]
[Round "2"]
[TimeControl "180+2"]
[Date "2023.07.25"]
[WhiteClock "0:00:37"]
[BlackClock "0:00:11"]
[Board "158"]

1. e4 {[%clk 0:03:00]}  c5 {[%clk 0:02:35]} 2. d4 {[%clk 0:03:01]}  cxd4 {[%clk 0:02:23]} 3. Qxd4 {[%clk 0:03:01]}  Nc6 {[%clk 0:02:19]} 4. Qe3 {[%clk 0:03:02]}  g6 {[%clk 0:02:19]} 5. Nc3 {[%clk 0:03:02]}  Bg7 {[%clk 0:02:20]} 6. Bd2 {[%clk 0:03:03]}  a6 {[%clk 0:02:16]} 7. O-O-O {[%clk 0:03:03]}  e6 {[%clk 0:02:14]} 8. h4 {[%clk 0:03:03]}  h5 {[%clk 0:02:14]} 9. Nh3 {[%clk 0:03:03]}  Qc7 {[%clk 0:02:13]} 10. Ng5 {[%clk 0:03:03]}  Nge7 {[%clk 0:02:12]} 11. Be2 {[%clk 0:02:59]}  b5 {[%clk 0:02:10]} 12. f4 {[%clk 0:02:50]}  b4 {[%clk 0:01:56]} 13. Na4 {[%clk 0:02:49]}  Qa5 {[%clk 0:01:53]} 14. b3 {[%clk 0:02:47]}  Bb7 {[%clk 0:01:49]} 15. a3 {[%clk 0:02:30]}  Rc8 {[%clk 0:01:23]} 16. Kb1 {[%clk 0:02:02]}  Nd4 {[%clk 0:01:03]} 17. Bxb4 {[%clk 0:01:58]}  Qc7 {[%clk 0:01:02]} 18. Bc4 {[%clk 0:01:27]}  Nec6 {[%clk 0:00:50]} 19. Bc5 {[%clk 0:01:26]}  Nb5 {[%clk 0:00:47]} 20. e5 {[%clk 0:01:13]}  Qa5 {[%clk 0:00:34]} 21. Bb6 {[%clk 0:01:09]}  Nxa3+ {[%clk 0:00:29]} 22. Ka2 {[%clk 0:00:54]}  Nxc4 {[%clk 0:00:26]} 23. Bxa5 {[%clk 0:00:53]}  Nxe3 {[%clk 0:00:25]} 24. Rd6 {[%clk 0:00:47]}  Nxa5 {[%clk 0:00:24]} 25. Nb6 {[%clk 0:00:45]}  Rxc2+ {[%clk 0:00:23]} 26. Ka3 {[%clk 0:00:37]}  Bf8 {[%clk 0:00:23]} 27. Kb4 {[%clk 0:00:36]}  Nc6+ {[%clk 0:00:21]} 28. Ka3 {[%clk 0:00:36]}  Bxd6+ {[%clk 0:00:21]} 29. exd6 {[%clk 0:00:37]}  O-O {[%clk 0:00:19]} 30. Nxd7 {[%clk 0:00:37]}  Rd8 {[%clk 0:00:18]} 31. Nf6+ {[%clk 0:00:38]}  Kg7 {[%clk 0:00:18]} 32. Nfe4 {[%clk 0:00:37]}  Nd4 {[%clk 0:00:15]} 33. Re1 {[%clk 0:00:37]}  Nxg2 {[%clk 0:00:14]} 34. Rg1 {[%clk 0:00:37]}  Nxf4 {[%clk 0:00:14]} 35. Rg3 {[%clk 0:00:36]}  Nd5 {[%clk 0:00:13]} 36. Rf3 {[%clk 0:00:36]}  Rd7 {[%clk 0:00:13]} 37. Rf1 {[%clk 0:00:36]}  Nc3 {[%clk 0:00:13]} 38. Kb4 {[%clk 0:00:36]}  Nxe4 {[%clk 0:00:13]} 39. Nxe4 {[%clk 0:00:36]}  Bxe4 {[%clk 0:00:14]} 40. Ka5 {[%clk 0:00:36]}  Rc6 {[%clk 0:00:14]} 41. b4 {[%clk 0:00:37]}  Rcxd6 {[%clk 0:00:14]} 42. Re1 {[%clk 0:00:36]}  Nc6+ {[%clk 0:00:14]} 43. Kb6 {[%clk 0:00:36]}  Bd3 {[%clk 0:00:14]} 44. Kc5 {[%clk 0:00:37]}  Bb5 {[%clk 0:00:14]} 45. Kb6 {[%clk 0:00:37]}  Nxb4+ {[%clk 0:00:14]} 46. Ka5 {[%clk 0:00:37]}  Nc6+ {[%clk 0:00:14]} 47. Kb6 {[%clk 0:00:37]}  Ne5+ {[%clk 0:00:14]} 48. Ka5 {[%clk 0:00:37]}  Rd5 {[%clk 0:00:14]} 49. Kb4 {[%clk 0:00:37]}  Nd3+ {[%clk 0:00:14]} 50. Ka5 {[%clk 0:00:37]}  Nxe1 {[%clk 0:00:14]} 51. Kb6 {[%clk 0:00:38]}  a5 {[%clk 0:00:14]} 52. Kxa5 {[%clk 0:00:39]}  Bc4+ {[%clk 0:00:14]} 53. Kb6 {[%clk 0:00:40]}  Rb5+ {[%clk 0:00:14]} 54. Ka6 {[%clk 0:00:37]}  Rd1 {[%clk 0:00:11]} 0-1


[Site "https://www.chess.com"]

[Event "Titled Tuesday Blitz July 25 Late 2023"]
[White "SicilianPanzer"]
[Black "Toniutti, Ezio"]
[BlackFideId "113034"]
[WhiteElo "2307"]
[BlackElo "2497"]
[Result "0-1"]
[Round "2"]
[TimeControl "180+2"]
[Date "2023.07.25"]
[WhiteClock "0:00:31"]
[BlackClock "0:01:19"]
[Board "160"]

1. e4 {[%clk 0:03:00]}  e5 {[%clk 0:02:59]} 2. Nc3 {[%clk 0:03:00]}  Nf6 {[%clk 0:02:58]} 3. Bc4 {[%clk 0:02:59]}  Nc6 {[%clk 0:02:58]} 4. d3 {[%clk 0:02:59]}  Na5 {[%clk 0:02:57]} 5. f4 {[%clk 0:02:53]}  Nxc4 {[%clk 0:02:55]} 6. dxc4 {[%clk 0:02:53]}  Bb4 {[%clk 0:02:52]} 7. fxe5 {[%clk 0:02:27]}  Nxe4 {[%clk 0:02:49]} 8. Qg4 {[%clk 0:02:25]}  Nxc3 {[%clk 0:02:44]} 9. Bd2 {[%clk 0:01:50]}  d6 {[%clk 0:02:19]} 10. Qxg7 {[%clk 0:01:42]}  Qh4+ {[%clk 0:02:15]} 11. g3 {[%clk 0:00:41]}  Qe4+ {[%clk 0:02:11]} 12. Kf1 {[%clk 0:00:40]}  Bh3+ {[%clk 0:01:23]} 13. Nxh3 {[%clk 0:00:31]}  Qe2+ {[%clk 0:01:19]} 0-1


[Site "https://www.chess.com"]

[Event "Titled Tuesday Blitz July 25 Late 2023"]
[White "Gireman, Ja"]
[Black "Wang, Alexander J"]
[WhiteFideId "5043794"]
[BlackFideId "30955270"]
[WhiteElo "2491"]
[BlackElo "2297"]
[Result "1-0"]
[Round "2"]
[TimeControl "180+2"]
[Date "2023.07.25"]
[WhiteClock "0:01:41"]
[BlackClock "0:00:32"]
[Board "162"]

1. e4 {[%clk 0:03:00]}  c5 {[%clk 0:02:57]} 2. Nf3 {[%clk 0:03:00]}  d6 {[%clk 0:02:56]} 3. d4 {[%clk 0:03:01]}  cxd4 {[%clk 0:02:57]} 4. Nxd4 {[%clk 0:03:02]}  Nf6 {[%clk 0:02:56]} 5. Nc3 {[%clk 0:03:02]}  g6 {[%clk 0:02:57]} 6. f4 {[%clk 0:03:02]}  Nc6 {[%clk 0:02:55]} 7. Nxc6 {[%clk 0:03:02]}  bxc6 {[%clk 0:02:56]} 8. e5 {[%clk 0:03:03]}  Nd7 {[%clk 0:02:48]} 9. exd6 {[%clk 0:03:03]}  exd6 {[%clk 0:02:48]} 10. Qd4 {[%clk 0:03:03]}  Qf6 {[%clk 0:02:47]} 11. Be3 {[%clk 0:03:04]}  Bg7 {[%clk 0:02:45]} 12. O-O-O {[%clk 0:03:03]}  Qxd4 {[%clk 0:02:45]} 13. Bxd4 {[%clk 0:03:04]}  Bxd4 {[%clk 0:02:45]} 14. Rxd4 {[%clk 0:03:05]}  d5 {[%clk 0:02:46]} 15. h4 {[%clk 0:03:01]}  h5 {[%clk 0:02:44]} 16. f5 {[%clk 0:03:02]}  O-O {[%clk 0:02:44]} 17. fxg6 {[%clk 0:02:59]}  fxg6 {[%clk 0:02:23]} 18. g4 {[%clk 0:02:58]}  Ne5 {[%clk 0:02:18]} 19. gxh5 {[%clk 0:02:54]}  gxh5 {[%clk 0:02:14]} 20. b4 {[%clk 0:02:39]}  Bg4 {[%clk 0:02:07]} 21. b5 {[%clk 0:02:36]}  Nf3 {[%clk 0:01:49]} 22. Ra4 {[%clk 0:02:34]}  d4 {[%clk 0:01:43]} 23. Ne4 {[%clk 0:02:32]}  cxb5 {[%clk 0:01:42]} 24. Bxb5 {[%clk 0:02:33]}  Rab8 {[%clk 0:01:41]} 25. Bc4+ {[%clk 0:02:30]}  Kg7 {[%clk 0:01:41]} 26. Rxa7+ {[%clk 0:02:29]}  Kh6 {[%clk 0:01:35]} 27. Ra6+ {[%clk 0:01:59]}  Kg7 {[%clk 0:01:29]} 28. Ng5 {[%clk 0:01:59]}  Nxg5 {[%clk 0:01:28]} 29. hxg5 {[%clk 0:02:00]}  Rb4 {[%clk 0:01:24]} 30. Bd3 {[%clk 0:01:56]}  Rfb8 {[%clk 0:01:15]} 31. Kd2 {[%clk 0:01:54]}  Rf8 {[%clk 0:00:59]} 32. g6 {[%clk 0:01:47]}  Rf2+ {[%clk 0:00:57]} 33. Kc1 {[%clk 0:01:48]}  Bf3 {[%clk 0:00:51]} 34. Ra7+ {[%clk 0:01:46]}  Kh6 {[%clk 0:00:50]} 35. Rh7+ {[%clk 0:01:42]}  Kg5 {[%clk 0:00:44]} 36. Rg1+ {[%clk 0:01:43]}  Bg4 {[%clk 0:00:38]} 37. g7 {[%clk 0:01:41]}  Rb8 {[%clk 0:00:32]} 38. Rh8 {[%clk 0:01:41]} 1-0


[Site "https://www.chess.com"]

[Event "Titled Tuesday Blitz July 25 Late 2023"]
[White "Roberson, Peter T"]
[Black "UgarteCesar"]
[WhiteFideId "412384"]
[WhiteElo "2487"]
[BlackElo "2287"]
[Result "1-0"]
[Round "2"]
[TimeControl "180+2"]
[Date "2023.07.25"]
[WhiteClock "0:02:13"]
[BlackClock "0:02:01"]
[Board "165"]

1. c4 {[%clk 0:03:00]}  e6 {[%clk 0:02:59]} 2. d4 {[%clk 0:02:57]}  d5 {[%clk 0:02:59]} 3. Nc3 {[%clk 0:02:56]}  h6 {[%clk 0:02:59]} 4. Bf4 {[%clk 0:02:55]}  Bd6 {[%clk 0:02:58]} 5. Bg3 {[%clk 0:02:53]}  Nf6 {[%clk 0:02:58]} 6. e3 {[%clk 0:02:53]}  a6 {[%clk 0:02:58]} 7. Nf3 {[%clk 0:02:52]}  O-O {[%clk 0:02:57]} 8. cxd5 {[%clk 0:02:50]}  exd5 {[%clk 0:02:56]} 9. Bd3 {[%clk 0:02:51]}  Re8 {[%clk 0:02:54]} 10. O-O {[%clk 0:02:51]}  c6 {[%clk 0:02:53]} 11. Ne5 {[%clk 0:02:51]}  Qe7 {[%clk 0:02:48]} 12. f4 {[%clk 0:02:51]}  Nfd7 {[%clk 0:02:43]} 13. Qf3 {[%clk 0:02:50]}  Nf8 {[%clk 0:02:41]} 14. Rae1 {[%clk 0:02:49]}  f6 {[%clk 0:02:40]} 15. Ng4 {[%clk 0:02:46]}  Be6 {[%clk 0:02:30]} 16. f5 {[%clk 0:02:40]}  Bf7 {[%clk 0:02:28]} 17. e4 {[%clk 0:02:40]}  Bxg3 {[%clk 0:02:23]} 18. Qxg3 {[%clk 0:02:40]}  dxe4 {[%clk 0:02:21]} 19. Rxe4 {[%clk 0:02:13]}  Qd8 {[%clk 0:02:18]} 20. Nxh6+ {[%clk 0:02:12]}  Kh7 {[%clk 0:02:01]} 21. Nxf7 {[%clk 0:02:13]} 1-0


[Site "https://www.chess.com"]

[Event "Titled Tuesday Blitz July 25 Late 2023"]
[White "Coelho, Ramyres Santana"]
[Black "Khater, Sherif"]
[WhiteFideId "2120690"]
[BlackFideId "2034280"]
[WhiteElo "2282"]
[BlackElo "2484"]
[Result "1/2-1/2"]
[Round "2"]
[TimeControl "180+2"]
[Date "2023.07.25"]
[WhiteClock "0:01:21"]
[BlackClock "0:02:24"]
[Board "166"]

1. e4 {[%clk 0:03:00]}  b6 {[%clk 0:03:00]} 2. Bc4 {[%clk 0:02:58]}  Bb7 {[%clk 0:03:01]} 3. Qf3 {[%clk 0:02:58]}  e6 {[%clk 0:03:01]} 4. d3 {[%clk 0:02:57]}  Nf6 {[%clk 0:03:01]} 5. Nc3 {[%clk 0:02:56]}  d5 {[%clk 0:03:01]} 6. exd5 {[%clk 0:02:57]}  Nxd5 {[%clk 0:03:02]} 7. Nxd5 {[%clk 0:02:57]}  Bxd5 {[%clk 0:03:02]} 8. Bxd5 {[%clk 0:02:57]}  Qxd5 {[%clk 0:03:03]} 9. Qxd5 {[%clk 0:02:57]}  exd5 {[%clk 0:03:04]} 10. Nf3 {[%clk 0:02:57]}  Bd6 {[%clk 0:03:03]} 11. O-O {[%clk 0:02:58]}  O-O {[%clk 0:03:03]} 12. Re1 {[%clk 0:02:59]}  Nd7 {[%clk 0:03:03]} 13. Bg5 {[%clk 0:02:58]}  Rfe8 {[%clk 0:03:03]} 14. Rxe8+ {[%clk 0:02:58]}  Rxe8 {[%clk 0:03:04]} 15. Re1 {[%clk 0:02:58]}  Rxe1+ {[%clk 0:03:04]} 16. Nxe1 {[%clk 0:02:59]}  f6 {[%clk 0:03:05]} 17. Bh4 {[%clk 0:02:59]}  Kf7 {[%clk 0:03:05]} 18. Bg3 {[%clk 0:02:59]}  Ke6 {[%clk 0:03:06]} 19. Bxd6 {[%clk 0:02:59]}  Kxd6 {[%clk 0:03:07]} 20. d4 {[%clk 0:02:57]}  c5 {[%clk 0:03:07]} 21. c3 {[%clk 0:02:53]}  Kc6 {[%clk 0:03:07]} 22. Kf1 {[%clk 0:02:53]}  Kb5 {[%clk 0:03:07]} 23. dxc5 {[%clk 0:02:50]}  bxc5 {[%clk 0:03:07]} 24. Ke2 {[%clk 0:02:43]}  a5 {[%clk 0:03:07]} 25. Kd3 {[%clk 0:02:43]}  Ne5+ {[%clk 0:03:06]} 26. Kc2 {[%clk 0:02:42]}  a4 {[%clk 0:03:07]} 27. h3 {[%clk 0:02:36]}  g5 {[%clk 0:03:04]} 28. Nd3 {[%clk 0:02:34]}  Nxd3 {[%clk 0:03:05]} 29. Kxd3 {[%clk 0:02:35]}  f5 {[%clk 0:03:03]} 30. g3 {[%clk 0:02:34]}  h5 {[%clk 0:03:02]} 31. f4 {[%clk 0:02:28]}  gxf4 {[%clk 0:02:52]} 32. gxf4 {[%clk 0:02:29]}  h4 {[%clk 0:02:53]} 33. c4+ {[%clk 0:02:21]}  Kc6 {[%clk 0:02:19]} 34. Kc3 {[%clk 0:01:32]}  d4+ {[%clk 0:02:17]} 35. Kd3 {[%clk 0:01:31]}  Kb6 {[%clk 0:02:17]} 36. a3 {[%clk 0:01:21]}  Kc6 {[%clk 0:02:14]} 37. Kc2 {[%clk 0:01:12]}  Kc7 {[%clk 0:02:14]} 38. Kd3 {[%clk 0:01:05]}  Kb7 {[%clk 0:02:14]} 39. Kc2 {[%clk 0:01:02]}  Ka7 {[%clk 0:02:15]} 40. Kd3 {[%clk 0:01:02]}  Ka6 {[%clk 0:02:15]} 41. Kc2 {[%clk 0:01:03]}  Ka5 {[%clk 0:02:16]} 42. Kd3 {[%clk 0:01:03]}  Ka6 {[%clk 0:02:17]} 43. Kc2 {[%clk 0:01:03]}  Ka7 {[%clk 0:02:18]} 44. Kd3 {[%clk 0:01:04]}  Ka8 {[%clk 0:02:18]} 45. Kc2 {[%clk 0:01:04]}  Kb8 {[%clk 0:02:19]} 46. Kd3 {[%clk 0:01:05]}  Kc8 {[%clk 0:02:19]} 47. Kc2 {[%clk 0:01:06]}  Kd7 {[%clk 0:02:20]} 48. Kd3 {[%clk 0:01:07]}  Ke7 {[%clk 0:02:21]} 49. Kc2 {[%clk 0:01:07]}  Kf7 {[%clk 0:02:21]} 50. Kd3 {[%clk 0:01:08]}  Kf8 {[%clk 0:02:16]} 51. Kc2 {[%clk 0:01:09]}  Ke8 {[%clk 0:02:16]} 52. Kd3 {[%clk 0:01:10]}  Kd7 {[%clk 0:02:17]} 53. Kc2 {[%clk 0:01:11]}  Ke6 {[%clk 0:02:18]} 54. Kd3 {[%clk 0:01:11]}  Kf6 {[%clk 0:02:17]} 55. Kc2 {[%clk 0:01:12]}  Kg7 {[%clk 0:02:18]} 56. Kd3 {[%clk 0:01:13]}  Kg8 {[%clk 0:02:18]} 57. Kc2 {[%clk 0:01:14]}  Kh8 {[%clk 0:02:18]} 58. Kd3 {[%clk 0:01:15]}  Kg8 {[%clk 0:02:17]} 59. Kc2 {[%clk 0:01:16]}  Kf8 {[%clk 0:02:18]} 60. Kd3 {[%clk 0:01:17]}  Ke8 {[%clk 0:02:19]} 61. Kc2 {[%clk 0:01:17]}  Kd8 {[%clk 0:02:20]} 62. Kd3 {[%clk 0:01:18]}  Kc8 {[%clk 0:02:21]} 63. Kc2 {[%clk 0:01:19]}  Kb8 {[%clk 0:02:22]} 64. Kd3 {[%clk 0:01:20]}  Ka8 {[%clk 0:02:23]} 65. Kc2 {[%clk 0:01:21]}  Ka7 {[%clk 0:02:24]} 1/2-1/2


[Site "https://www.chess.com"]

[Event "Titled Tuesday Blitz July 25 Late 2023"]
[White "Schut, Han"]
[Black "slidingknight2775"]
[WhiteFideId "1005561"]
[WhiteElo "2269"]
[BlackElo "2481"]
[Result "1/2-1/2"]
[Round "2"]
[TimeControl "180+2"]
[Date "2023.07.25"]
[WhiteClock "0:00:53"]
[BlackClock "0:00:24"]
[Board "170"]

1. e4 {[%clk 0:03:00]}  c6 {[%clk 0:02:58]} 2. d4 {[%clk 0:03:00]}  d5 {[%clk 0:02:57]} 3. exd5 {[%clk 0:03:01]}  cxd5 {[%clk 0:02:55]} 4. c4 {[%clk 0:03:01]}  e6 {[%clk 0:02:55]} 5. Nc3 {[%clk 0:03:01]}  Nf6 {[%clk 0:02:55]} 6. Nf3 {[%clk 0:03:01]}  Bb4 {[%clk 0:02:53]} 7. cxd5 {[%clk 0:03:01]}  Nxd5 {[%clk 0:02:52]} 8. Qc2 {[%clk 0:03:02]}  Nc6 {[%clk 0:02:51]} 9. a3 {[%clk 0:03:00]}  Be7 {[%clk 0:02:50]} 10. Bd3 {[%clk 0:02:55]}  Nf6 {[%clk 0:02:46]} 11. Be3 {[%clk 0:02:49]}  Bd7 {[%clk 0:02:24]} 12. Rd1 {[%clk 0:02:45]}  Rc8 {[%clk 0:02:18]} 13. h3 {[%clk 0:02:43]}  Na5 {[%clk 0:02:07]} 14. Qe2 {[%clk 0:02:37]}  Bc6 {[%clk 0:01:44]} 15. Ne5 {[%clk 0:02:33]}  Bd5 {[%clk 0:01:29]} 16. Nxd5 {[%clk 0:01:56]}  Nxd5 {[%clk 0:01:30]} 17. Bd2 {[%clk 0:01:27]}  Nc6 {[%clk 0:01:21]} 18. Nxc6 {[%clk 0:01:25]}  bxc6 {[%clk 0:01:20]} 19. O-O {[%clk 0:01:21]}  O-O {[%clk 0:01:17]} 20. Qe4 {[%clk 0:01:12]}  g6 {[%clk 0:00:41]} 21. Bh6 {[%clk 0:00:53]}  Re8 {[%clk 0:00:24]} 1/2-1/2


[Site "https://www.chess.com"]

[Event "Titled Tuesday Blitz July 25 Late 2023"]
[White "Michalczak, Thomas"]
[Black "Georg, Heinz"]
[WhiteFideId "4622634"]
[BlackFideId "4607295"]
[WhiteElo "2479"]
[BlackElo "2269"]
[Result "1-0"]
[Round "2"]
[TimeControl "180+2"]
[Date "2023.07.25"]
[WhiteClock "0:00:56"]
[BlackClock "0:00:12"]
[Board "171"]

1. e4 {[%clk 0:03:00]}  c5 {[%clk 0:02:59]} 2. c3 {[%clk 0:03:00]}  d5 {[%clk 0:02:58]} 3. exd5 {[%clk 0:03:00]}  Nf6 {[%clk 0:02:58]} 4. Nf3 {[%clk 0:03:01]}  Nxd5 {[%clk 0:02:56]} 5. Na3 {[%clk 0:03:01]}  Nc6 {[%clk 0:02:53]} 6. Bc4 {[%clk 0:03:00]}  Nb6 {[%clk 0:02:33]} 7. Be2 {[%clk 0:02:58]}  g6 {[%clk 0:02:30]} 8. d4 {[%clk 0:02:40]}  cxd4 {[%clk 0:02:30]} 9. Nb5 {[%clk 0:02:40]}  Bg7 {[%clk 0:02:26]} 10. Bf4 {[%clk 0:02:39]}  e5 {[%clk 0:02:24]} 11. Bg5 {[%clk 0:02:39]}  f6 {[%clk 0:02:24]} 12. Bh4 {[%clk 0:02:26]}  a6 {[%clk 0:02:18]} 13. Na3 {[%clk 0:02:05]}  dxc3 {[%clk 0:02:08]} 14. Qb3 {[%clk 0:02:05]}  cxb2 {[%clk 0:01:38]} 15. Rd1 {[%clk 0:02:02]}  Qc7 {[%clk 0:01:38]} 16. Bb5 {[%clk 0:01:39]}  Bd7 {[%clk 0:01:14]} 17. O-O {[%clk 0:01:39]}  O-O-O {[%clk 0:00:51]} 18. Qxb2 {[%clk 0:01:30]}  axb5 {[%clk 0:00:48]} 19. Nxb5 {[%clk 0:01:30]}  Nc4 {[%clk 0:00:46]} 20. Qc3 {[%clk 0:01:21]}  Qa5 {[%clk 0:00:32]} 21. Qxc4 {[%clk 0:01:20]}  Kb8 {[%clk 0:00:27]} 22. Nd6 {[%clk 0:01:06]}  Rhf8 {[%clk 0:00:18]} 23. Rb1 {[%clk 0:00:59]}  Bc8 {[%clk 0:00:12]} 24. Qxc6 {[%clk 0:00:56]} 1-0


[Site "https://www.chess.com"]

[Event "Titled Tuesday Blitz July 25 Late 2023"]
[White "Clawitter, Craig"]
[Black "Spichkin, Alexander"]
[WhiteFideId "2023105"]
[BlackFideId "4144074"]
[WhiteElo "2268"]
[BlackElo "2477"]
[Result "1-0"]
[Round "2"]
[TimeControl "180+2"]
[Date "2023.07.25"]
[WhiteClock "0:02:33"]
[BlackClock "0:02:24"]
[Board "173"]

1. e4 {[%clk 0:02:58]}  e5 {[%clk 0:02:58]} 2. Nc3 {[%clk 0:02:57]}  Bb4 {[%clk 0:02:53]} 3. Nd5 {[%clk 0:02:56]}  Bc5 {[%clk 0:02:53]} 4. Nf3 {[%clk 0:02:55]}  c6 {[%clk 0:02:53]} 5. Ne3 {[%clk 0:02:53]}  Nf6 {[%clk 0:02:52]} 6. Nxe5 {[%clk 0:02:52]}  Nxe4 {[%clk 0:02:52]} 7. d4 {[%clk 0:02:52]}  Bd6 {[%clk 0:02:48]} 8. Qg4 {[%clk 0:02:40]}  Nf6 {[%clk 0:02:31]} 9. Qxg7 {[%clk 0:02:38]}  Bxe5 {[%clk 0:02:31]} 10. Qxh8+ {[%clk 0:02:35]}  Ke7 {[%clk 0:02:30]} 11. Qxd8+ {[%clk 0:02:34]}  Kxd8 {[%clk 0:02:30]} 12. dxe5 {[%clk 0:02:35]}  Ne4 {[%clk 0:02:24]} 13. Bd3 {[%clk 0:02:33]} 1-0


[Site "https://www.chess.com"]

[Event "Titled Tuesday Blitz July 25 Late 2023"]
[White "PerAsperaAdAstraCB"]
[Black "Thiel, Thomas"]
[BlackFideId "4615964"]
[WhiteElo "2477"]
[BlackElo "2265"]
[Result "1-0"]
[Round "2"]
[TimeControl "180+2"]
[Date "2023.07.25"]
[WhiteClock "0:00:24"]
[BlackClock "0:00:10"]
[Board "174"]

1. d4 {[%clk 0:03:00]}  d5 {[%clk 0:02:59]} 2. Bf4 {[%clk 0:03:00]}  Nf6 {[%clk 0:02:56]} 3. e3 {[%clk 0:03:01]}  c5 {[%clk 0:02:56]} 4. Nc3 {[%clk 0:02:59]}  a6 {[%clk 0:02:47]} 5. dxc5 {[%clk 0:02:58]}  Nc6 {[%clk 0:02:44]} 6. a3 {[%clk 0:02:58]}  e5 {[%clk 0:02:31]} 7. Bg5 {[%clk 0:02:58]}  Bxc5 {[%clk 0:02:31]} 8. Bxf6 {[%clk 0:02:57]}  Qxf6 {[%clk 0:02:26]} 9. Nxd5 {[%clk 0:02:54]}  Qd8 {[%clk 0:02:26]} 10. c4 {[%clk 0:02:53]}  Be6 {[%clk 0:02:23]} 11. Ne2 {[%clk 0:02:49]}  O-O {[%clk 0:02:21]} 12. Nec3 {[%clk 0:02:49]}  Rc8 {[%clk 0:02:17]} 13. Be2 {[%clk 0:02:48]}  f5 {[%clk 0:02:05]} 14. O-O {[%clk 0:02:47]}  f4 {[%clk 0:02:04]} 15. exf4 {[%clk 0:02:45]}  exf4 {[%clk 0:02:03]} 16. b4 {[%clk 0:02:28]}  Ba7 {[%clk 0:02:02]} 17. c5 {[%clk 0:02:24]}  Ne5 {[%clk 0:01:55]} 18. f3 {[%clk 0:02:17]}  b6 {[%clk 0:01:51]} 19. cxb6 {[%clk 0:02:10]}  Bxb6+ {[%clk 0:01:50]} 20. Kh1 {[%clk 0:02:10]}  Nc4 {[%clk 0:01:44]} 21. Bxc4 {[%clk 0:01:57]}  Rxc4 {[%clk 0:01:45]} 22. Nxb6 {[%clk 0:01:58]}  Qxb6 {[%clk 0:01:42]} 23. Na4 {[%clk 0:01:57]}  Qc6 {[%clk 0:01:34]} 24. Nc5 {[%clk 0:01:57]}  Bf7 {[%clk 0:01:31]} 25. Qe2 {[%clk 0:01:45]}  a5 {[%clk 0:01:31]} 26. Rfc1 {[%clk 0:01:42]}  Re8 {[%clk 0:01:21]} 27. Qd2 {[%clk 0:01:28]}  Rxc1+ {[%clk 0:01:20]} 28. Rxc1 {[%clk 0:01:27]}  axb4 {[%clk 0:01:20]} 29. axb4 {[%clk 0:01:28]}  Qb5 {[%clk 0:01:20]} 30. Qxf4 {[%clk 0:01:23]}  h6 {[%clk 0:01:16]} 31. h3 {[%clk 0:01:23]}  Rb8 {[%clk 0:01:08]} 32. Rb1 {[%clk 0:01:02]}  Rd8 {[%clk 0:01:02]} 33. Kh2 {[%clk 0:01:01]}  Bg6 {[%clk 0:00:55]} 34. Rc1 {[%clk 0:00:56]}  Rf8 {[%clk 0:00:53]} 35. Qc4+ {[%clk 0:00:56]}  Qxc4 {[%clk 0:00:52]} 36. Rxc4 {[%clk 0:00:57]}  Rb8 {[%clk 0:00:50]} 37. Nd7 {[%clk 0:00:54]}  Rb7 {[%clk 0:00:49]} 38. Ne5 {[%clk 0:00:53]}  Bf7 {[%clk 0:00:46]} 39. Nxf7 {[%clk 0:00:51]}  Kxf7 {[%clk 0:00:46]} 40. h4 {[%clk 0:00:52]}  Ke6 {[%clk 0:00:46]} 41. h5 {[%clk 0:00:52]}  Kf5 {[%clk 0:00:44]} 42. g4+ {[%clk 0:00:51]}  Kg5 {[%clk 0:00:43]} 43. Kg3 {[%clk 0:00:52]}  Kf6 {[%clk 0:00:40]} 44. Kh4 {[%clk 0:00:52]}  Rb5 {[%clk 0:00:39]} 45. f4 {[%clk 0:00:50]}  Rb6 {[%clk 0:00:39]} 46. Rd4 {[%clk 0:00:45]}  Rb7 {[%clk 0:00:37]} 47. Re4 {[%clk 0:00:43]}  Kf7 {[%clk 0:00:34]} 48. Rc4 {[%clk 0:00:43]}  Kf6 {[%clk 0:00:34]} 49. g5+ {[%clk 0:00:43]}  Kf5 {[%clk 0:00:34]} 50. g6 {[%clk 0:00:37]}  Kf6 {[%clk 0:00:26]} 51. Kg4 {[%clk 0:00:37]}  Rb6 {[%clk 0:00:24]} 52. Re4 {[%clk 0:00:33]}  Rb5 {[%clk 0:00:24]} 53. Rd4 {[%clk 0:00:32]}  Rb6 {[%clk 0:00:24]} 54. Kf3 {[%clk 0:00:30]}  Rb5 {[%clk 0:00:23]} 55. Kg4 {[%clk 0:00:25]}  Rb6 {[%clk 0:00:10]} 56. Rd7 {[%clk 0:00:24]} 1-0


[Site "https://www.chess.com"]

[Event "Titled Tuesday Blitz July 25 Late 2023"]
[White "Doluhanova, Evgeniya"]
[Black "Ocido, Michael"]
[WhiteFideId "14112035"]
[BlackFideId "115201920"]
[WhiteElo "2250"]
[BlackElo "2469"]
[Result "1-0"]
[Round "2"]
[TimeControl "180+2"]
[Date "2023.07.25"]
[WhiteClock "0:00:41"]
[BlackClock "0:00:14"]
[Board "176"]

1. e4 {[%clk 0:03:00]}  e6 {[%clk 0:02:59]} 2. d4 {[%clk 0:02:57]}  d5 {[%clk 0:02:59]} 3. exd5 {[%clk 0:02:54]}  exd5 {[%clk 0:02:58]} 4. Nf3 {[%clk 0:02:53]}  Bd6 {[%clk 0:02:56]} 5. Bd3 {[%clk 0:02:48]}  Ne7 {[%clk 0:02:54]} 6. Bg5 {[%clk 0:02:43]}  f6 {[%clk 0:02:53]} 7. Bh4 {[%clk 0:02:40]}  Bg4 {[%clk 0:02:51]} 8. h3 {[%clk 0:02:40]}  Bh5 {[%clk 0:02:51]} 9. Qe2 {[%clk 0:02:37]}  Qd7 {[%clk 0:02:37]} 10. Nbd2 {[%clk 0:02:35]}  Nc6 {[%clk 0:02:37]} 11. O-O-O {[%clk 0:02:32]}  Nxd4 {[%clk 0:02:26]} 12. Qe3 {[%clk 0:02:32]}  Nxf3 {[%clk 0:02:05]} 13. Nxf3 {[%clk 0:02:31]}  Qa4 {[%clk 0:01:58]} 14. Bg3 {[%clk 0:02:12]}  Bxg3 {[%clk 0:01:06]} 15. fxg3 {[%clk 0:02:11]}  Qxa2 {[%clk 0:00:54]} 16. Rhe1 {[%clk 0:02:05]}  Qa1+ {[%clk 0:00:55]} 17. Kd2 {[%clk 0:02:04]}  Qa5+ {[%clk 0:00:55]} 18. c3 {[%clk 0:01:57]}  O-O-O {[%clk 0:00:45]} 19. Qxe7 {[%clk 0:01:52]}  d4 {[%clk 0:00:46]} 20. Qb4 {[%clk 0:01:34]}  dxc3+ {[%clk 0:00:46]} 21. Qxc3 {[%clk 0:01:26]}  Qa4 {[%clk 0:00:30]} 22. Ke3 {[%clk 0:01:00]}  Rd6 {[%clk 0:00:25]} 23. Kf2 {[%clk 0:00:55]}  Rhd8 {[%clk 0:00:16]} 24. Bf5+ {[%clk 0:00:54]}  Kb8 {[%clk 0:00:16]} 25. Rxd6 {[%clk 0:00:54]}  Rxd6 {[%clk 0:00:17]} 26. g4 {[%clk 0:00:47]}  Bf7 {[%clk 0:00:16]} 27. Re7 {[%clk 0:00:46]}  Bd5 {[%clk 0:00:14]} 28. Qxc7+ {[%clk 0:00:42]}  Ka8 {[%clk 0:00:14]} 29. Qc8# {[%clk 0:00:41]} 1-0


[Site "https://www.chess.com"]